fUST/lending_fUST_20240928
["ID","MTS","AMOUNT","RATE_DAILY","PERIOD"]
[339354414,1727460642552,-181.0,0.00019528,2]
[339354415,1727460642563,-181.0,0.00019528,2]
[339354416,1727460642573,-181.0,0.00019528,2]
[339354417,1727460642584,-181.0,0.00019528,2]
[339354418,1727460642696,-181.0,0.00019528,2]
[339354419,1727460642706,-181.0,0.00019528,2]
[339354420,1727460642715,-181.0,0.00019528,2]
[339354421,1727460642725,-181.0,0.00019528,2]
[339354422,1727460642734,-181.0,0.00019528,2]
[339354423,1727460642743,-181.0,0.00019528,2]
[339354424,1727460642752,-181.0,0.00019528,2]
[339354425,1727460642761,-181.0,0.00019528,2]
[339354426,1727460642771,-153.0,0.00019528,2]
[339354427,1727460642780,-153.0,0.00019528,2]
[339354428,1727460642789,-180.7046754,0.00019568,2]
[339354429,1727460642798,-1000.0,0.00019616,2]
[339354430,1727460642807,-420.0,0.00019676,2]
[339354431,1727460642817,-6516.8257736,0.0001972,2]
[339354432,1727460642826,-500.0,0.00019726,2]
[339354433,1727460642835,-500.0,0.00019726,2]
[339354434,1727460642844,-483.849,0.00019726,2]
[339354435,1727460642853,-631.66,0.00019726,2]
[339354436,1727460642862,-500.0,0.00019726,2]
[339354437,1727460642871,-809.35,0.00019726,2]
[339354438,1727460642880,-500.0,0.00019726,2]
[339354439,1727460642889,-683.52,0.00019726,2]
[339354440,1727460642899,-638.03,0.00019726,2]
[339354441,1727460642911,-500.0,0.00019726,2]
[339354442,1727460642921,-500.0,0.00019726,2]
[339354443,1727460642933,-500.0,0.00019726,2]
[339354444,1727460642944,-500.0,0.00019726,2]
[339354445,1727460642956,-200.0,0.00019726,2]
[339354446,1727460642967,-491.14,0.00019726,2]
[339354447,1727460642978,-733.28,0.00019726,2]
[339354448,1727460642988,-754.13,0.00019726,2]
[339354449,1727460642999,-500.0,0.00019726,2]
[339354450,1727460643009,-500.0,0.00019726,2]
[339354451,1727460643020,-851.98,0.00019726,2]
[339354452,1727460643030,-500.0,0.00019726,2]
[339354453,1727460643040,-500.0,0.00019726,2]
[339354454,1727460643052,-1118.04,0.00019726,2]
[339354455,1727460643063,-500.0,0.00019726,2]
[339354456,1727460643071,-8988.77,0.00019726,2]
[339354457,1727460643082,-1693.49,0.00019726,2]
[339354458,1727460643093,-500.0,0.00019726,2]
[339354459,1727460643105,-500.0,0.00019726,2]
[339354460,1727460643114,-500.0,0.00019726,2]
[339354461,1727460643125,-500.0,0.00019726,2]
[339354463,1727460643135,-2045.54,0.00019726,2]
[339354464,1727460643143,-547.65,0.00019726,2]
[339354465,1727460643153,-1008.67,0.00019726,2]
[339354467,1727460643163,-180.7046754,0.00019784,2]
[339354468,1727460643175,-6516.8257736,0.00019913,2]
[339354469,1727460643186,-600.0,0.0001995,3]
[339354470,1727460643196,-600.0,0.0001995,3]
[339354471,1727460643206,-600.0,0.0001995,3]
[339354472,1727460643216,-600.0,0.0001995,3]
[339354473,1727460643225,-600.0,0.0001995,3]
[339354474,1727460643237,-600.0,0.0001995,3]
[339354475,1727460643247,-151.0,0.0002,2]
[339354476,1727460643258,-151.0,0.0002,2]
[339354478,1727460643267,-151.0,0.0002,2]
[339354479,1727460643276,-151.0,0.0002,2]
[339354480,1727460643285,-500.0,0.0002,2]
[339354482,1727460643295,-631.66,0.0002,2]
[339354484,1727460643304,-500.0,0.0002,2]
[339354485,1727460643313,-809.35,0.0002,2]
[339354486,1727460643325,-500.0,0.0002,2]
[339354487,1727460643336,-683.52,0.0002,2]
[339354488,1727460643345,-638.03,0.0002,2]
[339354489,1727460643355,-500.0,0.0002,2]
[339354491,1727460643367,-500.0,0.0002,2]
[339354493,1727460643377,-500.0,0.0002,2]
[339354495,1727460643388,-500.0,0.0002,2]
[339354497,1727460643399,-200.0,0.0002,2]
[339354499,1727460643410,-733.28,0.0002,2]
[339354501,1727460643419,-754.13,0.0002,2]
[339354503,1727460643430,-500.0,0.0002,2]
[339354505,1727460643440,-500.0,0.0002,2]
[339354507,1727460643450,-851.98,0.0002,2]
[339354508,1727460643459,-187.06272016,0.0002,2]
[339354510,1727460643469,-500.0,0.0002,2]
[339354511,1727460643478,-1118.04,0.0002,2]
[339354512,1727460643489,-500.0,0.0002,2]
[339354513,1727460643500,-8988.77,0.0002,2]
[339354514,1727460643510,-1693.49,0.0002,2]
[339354516,1727460643521,-500.0,0.0002,2]
[339354518,1727460643531,-482.4761541,0.0002,2]
[339354519,1727460643541,-500.0,0.0002,2]
[339354521,1727460643551,-180.7046754,0.0002,2]
[339354523,1727460643560,-500.0,0.0002,2]
[339354525,1727460643570,-2045.54,0.0002,2]
[339354527,1727460643580,-547.65,0.0002,2]
[339354529,1727460643589,-1008.67,0.0002,2]
[339354530,1727460643598,-170.4,0.00020029,2]
[339354533,1727460643609,-600.0,0.00020036,3]
[339354534,1727460643618,-800.0,0.00020068,2]
[339354535,1727460643628,-500.0,0.00020073,2]
[339354536,1727460643638,-150.112233,0.000201,4]
[339354537,1727460643648,-151.0,0.00020108,2]
[339354538,1727460643657,-151.0,0.00020108,2]
[339354539,1727460643666,-151.0,0.00020108,2]
[339354540,1727460643675,-51830.09190217,0.00020108,2]
[339354541,1727460643687,-150.0,0.00020125,2]
[339354542,1727460643697,-6516.82577361,0.00020126,2]
[339354543,1727460643708,-11531.83280628,0.00020155,2]
[339354544,1727460643718,-600.0,0.00020188,3]
[339354545,1727460643729,-150.112233,0.000202,5]
[339354546,1727460643740,-150.112233,0.000202,5]
[339354547,1727460643752,-2708.56092897,0.00020211,2]
[339354548,1727460643763,-600.0,0.00020217,3]
[339354549,1727460643774,-500.0,0.00020273,2]
[339354550,1727460643785,-631.66,0.00020273,2]
[339354551,1727460643795,-500.0,0.00020273,2]
[339354552,1727460643805,-809.35,0.00020273,2]
[339354553,1727460643817,-500.0,0.00020273,2]
[339354554,1727460643828,-683.52,0.00020273,2]
[339354555,1727460643839,-638.03,0.00020273,2]
[339354556,1727460643850,-500.0,0.00020273,2]
[339354557,1727460643860,-500.0,0.00020273,2]
[339354558,1727460643870,-500.0,0.00020273,2]
[339354559,1727460643880,-500.0,0.00020273,2]
[339354560,1727460643890,-200.0,0.00020273,2]
[339354561,1727460643899,-733.28,0.00020273,2]
[339354562,1727460643908,-754.13,0.00020273,2]
[339354563,1727460643919,-500.0,0.00020273,2]
[339354564,1727460643930,-851.98,0.00020273,2]
[339354565,1727460643943,-500.0,0.00020273,2]
[339354566,1727460643957,-1118.04,0.00020273,2]
[339354567,1727460643973,-500.0,0.00020273,2]
[339354568,1727460643988,-8988.77,0.00020273,2]
[339354569,1727460644002,-1693.49,0.00020273,2]
[339354570,1727460644014,-500.0,0.00020273,2]
[339354571,1727460644024,-500.0,0.00020273,2]
[339354572,1727460644037,-2045.54,0.00020273,2]
[339354573,1727460644049,-547.65,0.00020273,2]
[339354574,1727460644061,-1008.67,0.00020273,2]
[339354575,1727460644073,-160.0,0.0002031,2]
[339354576,1727460644085,-160.0,0.0002031,2]
[339354577,1727460644096,-160.0,0.0002031,2]
[339354578,1727460644109,-123095.18576692,0.00020311,2]
[339354579,1727460644123,-73057.13890186,0.00020311,2]
[339354580,1727460644138,-183057.68396815,0.00020311,10]
[339354581,1727460644324,-48514.27060274,0.00020311,10]
[339354640,1727460646653,-494862.3653163,0.00020311,10]
[339354662,1727461557099,-1545.311351,0.000178,2]
[339354663,1727461557122,-248.018811,0.00018279,2]
[339354664,1727461557145,-248.018811,0.00018329,2]
[339354665,1727461557165,-6755.5608197,0.0001834,2]
[339354666,1727461557191,-248.018811,0.0001838,2]
[339354667,1727461557214,-248.018811,0.0001843,2]
[339354668,1727461557235,-300.0,0.00018479,2]
[339354669,1727461557256,-300.0,0.00018479,2]
[339354670,1727461557278,-248.018811,0.0001848,2]
[339354671,1727461557299,-1545.311351,0.00018485,2]
[339354672,1727461557322,-248.018811,0.0001853,2]
[339354673,1727461557347,-248.018811,0.0001858,2]
[339354674,1727461557370,-248.018811,0.0001863,2]
[339354675,1727461557391,-150.0,0.00018644,2]
[339354676,1727461557418,-248.018811,0.0001868,2]
[339354677,1727461557442,-248.018811,0.00018731,2]
[339354678,1727461557465,-248.018811,0.00018781,2]
[339354679,1727461557489,-248.018811,0.00018831,2]
[339354680,1727461557510,-2529.51276695,0.0001888,2]
[339354681,1727461557533,-248.018811,0.00018881,2]
[339354682,1727461557556,-500.0,0.00018904,2]
[339354683,1727461557580,-248.018811,0.00018931,2]
[339354684,1727461557601,-800.0,0.00018972,2]
[339354685,1727461557624,-248.018811,0.00018981,2]
[339354686,1727461557646,-248.018811,0.00019031,2]
[339354687,1727461557669,-248.018811,0.00019081,2]
[339354688,1727461557692,-248.018811,0.00019132,2]
[339354689,1727461557716,-500.0,0.00019169,2]
[339354690,1727461557739,-500.0,0.00019169,2]
[339354691,1727461557763,-500.0,0.00019169,2]
[339354692,1727461557786,-199.42373963,0.00019169,2]
[339354693,1727461557810,-500.0,0.00019169,2]
[339354694,1727461557832,-500.0,0.00019169,2]
[339354695,1727461557858,-500.0,0.00019169,2]
[339354696,1727461557882,-500.0,0.00019169,2]
[339354697,1727461557911,-500.0,0.00019169,2]
[339354698,1727461557934,-500.0,0.00019169,2]
[339354699,1727461557958,-500.0,0.00019169,2]
[339354700,1727461557981,-500.0,0.00019169,2]
[339354701,1727461558005,-500.0,0.00019169,2]
[339354702,1727461558026,-1545.311351,0.0001917,2]
[339354703,1727461558048,-500.0,0.00019178,2]
[339354704,1727461558070,-500.0,0.00019178,2]
[339354705,1727461558091,-526.38,0.00019178,2]
[339354706,1727461558114,-674.46,0.00019178,2]
[339354707,1727461558136,-518.02367335,0.00019178,2]
[339354708,1727461558157,-500.0,0.00019178,2]
[339354709,1727461558179,-501.46636451,0.00019178,2]
[339354710,1727461558201,-500.0,0.00019178,2]
[339354711,1727461558223,-365.17829871,0.00019178,2]
[339354712,1727461558245,-500.0,0.00019178,2]
[339354713,1727461558266,-558.27,0.00019178,2]
[339354714,1727461558288,-500.0,0.00019178,2]
[339354715,1727461558308,-357.48529128,0.00019178,2]
[339354716,1727461558329,-500.0,0.00019178,2]
[339354717,1727461558350,-500.0,0.00019178,2]
[339354718,1727461558371,-722.71,0.00019178,2]
[339354719,1727461558391,-76.83816524,0.00019178,2]
[339354721,1727461754463,166.17137,0.00018387,2]
[339354722,1727461754704,1.93786161,0.00018524,2]
[339354779,1727461831971,-200.219911,0.00018137,2]
[339354781,1727461831982,-164.23350839,0.00018524,2]
[339354783,1727461831993,-166.17137,0.00018661,2]
[339354785,1727461832003,-166.17137,0.00018798,2]
[339354787,1727461832014,-166.17137,0.00018935,2]
[339354788,1727461832023,-592.75233161,0.00018972,2]
[339354909,1727461838559,-207.24766839,0.00018972,2]
[339354910,1727461838569,-166.17137,0.00019072,2]
[339354911,1727461838578,-300.0,0.00019177,2]
[339354912,1727461838587,-300.0,0.00019177,2]
[339354913,1727461838597,-423.16183476,0.00019178,2]
[339354914,1727461838607,-500.0,0.00019178,2]
[339354915,1727461838616,-816.48,0.00019178,2]
[339354916,1727461838626,-655.04,0.00019178,2]
[339354917,1727461838635,-1024.87,0.00019178,2]
[339354918,1727461838645,-500.0,0.00019178,2]
[339354919,1727461838656,-500.0,0.00019178,2]
[339354920,1727461838666,-500.0,0.00019178,2]
[339354921,1727461838678,-500.0,0.00019178,2]
[339354922,1727461838690,-500.0,0.00019178,2]
[339354923,1727461838702,-500.0,0.00019178,2]
[339354924,1727461838712,-702.72,0.00019178,2]
[339354925,1727461838722,-500.0,0.00019178,2]
[339354926,1727461838733,-1552.36,0.00019178,2]
[339354927,1727461838743,-500.0,0.00019178,2]
[339354928,1727461838758,-924.61,0.00019178,2]
[339354929,1727461838771,-8239.7,0.00019178,2]
[339354930,1727461838781,-163.629971,0.00019178,2]
[339354931,1727461838791,-465.01080061,0.000192,2]
[339354932,1727461838800,-500.0,0.00019207,2]
[339354933,1727461838810,-188.82485996,0.00019207,2]
[339354934,1727461838819,-166.17137,0.00019208,2]
[339354935,1727461838829,-6618.4444846,0.00019223,2]
[339354936,1727461838839,-166.17137,0.00019345,2]
[339354937,1727461838849,-2347.7433623,0.00019352,2]
[339354938,1727461838859,-500.0,0.00019452,2]
[339354939,1727461838869,-722.71,0.00019452,2]
[339354940,1727461838880,-500.0,0.00019452,2]
[339354941,1727461838890,-500.0,0.00019452,2]
[339354942,1727461838900,-816.48,0.00019452,2]
[339354943,1727461838912,-655.04,0.00019452,2]
[339354944,1727461838925,-1024.87,0.00019452,2]
[339354945,1727461838937,-500.0,0.00019452,2]
[339354946,1727461838949,-500.0,0.00019452,2]
[339354947,1727461838960,-500.0,0.00019452,2]
[339354948,1727461838969,-482.4761541,0.00019452,2]
[339354949,1727461838979,-702.72,0.00019452,2]
[339354950,1727461838988,-500.0,0.00019452,2]
[339354951,1727461838997,-1552.36,0.00019452,2]
[339354952,1727461839007,-500.0,0.00019452,2]
[339354953,1727461839019,-924.61,0.00019452,2]
[339354954,1727461839028,-8239.7,0.00019452,2]
[339354955,1727461839038,-153.0,0.00019478,2]
[339354956,1727461839050,-153.0,0.00019478,2]
[339354957,1727461839060,-153.0,0.00019478,2]
[339354958,1727461839071,-153.0,0.00019478,2]
[339354959,1727461839083,-153.0,0.00019478,2]
[339354960,1727461839095,-153.0,0.00019478,2]
[339354961,1727461839105,-153.0,0.00019478,2]
[339354962,1727461839116,-153.0,0.00019478,2]
[339354963,1727461839126,-153.0,0.00019478,2]
[339354964,1727461839137,-153.0,0.00019478,2]
[339354965,1727461839147,-153.0,0.00019478,2]
[339354966,1727461839158,-153.0,0.00019478,2]
[339354967,1727461839170,-153.0,0.00019478,2]
[339354968,1727461839180,-153.0,0.00019478,2]
[339354969,1727461839192,-153.0,0.00019478,2]
[339354970,1727461839202,-153.0,0.00019478,2]
[339354971,1727461839211,-153.0,0.00019478,2]
[339354972,1727461839220,-153.0,0.00019478,2]
[339354973,1727461839230,-153.0,0.00019478,2]
[339354974,1727461839239,-153.0,0.00019479,2]
[339354975,1727461839248,-153.0,0.00019479,2]
[339354977,1727461839257,-153.0,0.00019479,2]
[339354979,1727461839266,-153.0,0.00019479,2]
[339354980,1727461839275,-153.0,0.00019479,2]
[339354981,1727461839284,-153.0,0.00019479,2]
[339354982,1727461839294,-153.0,0.00019479,2]
[339354983,1727461839303,-153.0,0.00019479,2]
[339354984,1727461839313,-153.0,0.00019479,2]
[339354985,1727461839322,-153.0,0.00019479,2]
[339354986,1727461839334,-153.0,0.00019479,2]
[339354987,1727461839344,-153.0,0.00019479,2]
[339354988,1727461839355,-153.0,0.00019479,2]
[339354989,1727461839369,-153.0,0.00019479,2]
[339354991,1727461839379,-153.0,0.00019479,2]
[339354993,1727461839390,-153.0,0.00019479,2]
[339354994,1727461839402,-153.0,0.00019479,2]
[339354995,1727461839412,-153.0,0.00019479,2]
[339354996,1727461839425,-153.0,0.00019479,2]
[339354997,1727461839436,-153.0,0.00019479,2]
[339354998,1727461839447,-153.0,0.00019479,2]
[339354999,1727461839460,-153.0,0.00019479,2]
[339355000,1727461839469,-153.0,0.00019479,2]
[339355001,1727461839479,-153.0,0.00019479,2]
[339355002,1727461839489,-153.0,0.00019479,2]
[339355003,1727461839499,-153.0,0.00019479,2]
[339355006,1727461839510,-153.0,0.00019479,2]
[339355007,1727461839520,-153.0,0.00019479,2]
[339355010,1727461839533,-153.0,0.00019479,2]
[339355012,1727461839542,-153.0,0.00019479,2]
[339355013,1727461839552,-153.0,0.00019479,2]
[339355015,1727461839562,-153.0,0.00019479,2]
[339355017,1727461839571,-153.0,0.00019479,2]
[339355020,1727461839581,-153.0,0.00019479,2]
[339355021,1727461839591,-153.0,0.00019479,2]
[339355023,1727461839600,-153.0,0.00019479,2]
[339355024,1727461839610,-153.0,0.00019479,2]
[339355025,1727461839620,-153.0,0.00019479,2]
[339355026,1727461839630,-153.0,0.00019479,2]
[339355027,1727461839639,-153.0,0.00019479,2]
[339355028,1727461839650,-153.0,0.00019479,2]
[339355029,1727461839660,-153.0,0.00019479,2]
[339355030,1727461839670,-153.0,0.00019479,2]
[339355031,1727461839679,-153.0,0.00019479,2]
[339355032,1727461839688,-153.0,0.00019479,2]
[339355033,1727461839698,-153.0,0.00019479,2]
[339355034,1727461839707,-153.0,0.00019479,2]
[339355035,1727461839717,-153.0,0.00019479,2]
[339355036,1727461839726,-153.0,0.00019479,2]
[339355037,1727461839735,-153.0,0.00019479,2]
[339355038,1727461839744,-153.0,0.00019479,2]
[339355039,1727461839753,-153.0,0.00019479,2]
[339355040,1727461839763,-153.0,0.00019479,2]
[339355041,1727461839772,-153.0,0.00019479,2]
[339355042,1727461839782,-153.0,0.00019479,2]
[339355043,1727461839791,-153.0,0.00019479,2]
[339355044,1727461839801,-153.0,0.00019479,2]
[339355045,1727461839810,-153.0,0.00019479,2]
[339355046,1727461839820,-153.0,0.00019479,2]
[339355047,1727461839829,-153.0,0.00019479,2]
[339355048,1727461839839,-153.0,0.00019479,2]
[339355049,1727461839848,-153.0,0.00019479,2]
[339355050,1727461839857,-153.0,0.00019479,2]
[339355051,1727461839867,-214.0,0.000195,10]
[339355052,1727461839876,-208.2131265,0.00019561,2]
[339355053,1727461839885,-1000.0,0.00019571,2]
[339355054,1727461839895,-200.0,0.00019586,2]
[339355055,1727461839905,-500.0,0.00019586,2]
[339355056,1727461839915,-500.0,0.00019586,2]
[339355057,1727461839926,-500.0,0.00019586,2]
[339355058,1727461839936,-500.0,0.00019586,2]
[339355059,1727461839945,-500.0,0.00019586,2]
[339355060,1727461839956,-1875.08,0.00019586,2]
[339355061,1727461839966,-502.02,0.00019586,2]
[339355062,1727461839976,-500.0,0.00019586,2]
[339355063,1727461839985,-500.0,0.00019586,2]
[339355064,1727461839995,-500.0,0.00019586,2]
[339355065,1727461840005,-557.08,0.00019586,2]
[339355066,1727461840015,-713.8,0.00019586,2]
[339355067,1727461840025,-588.18,0.00019586,2]
[339355068,1727461840035,-208.21312646,0.00019641,2]
[339355069,1727461840045,-425.36,0.00019651,3]
[339355070,1727461840054,-200.9704456,0.0001966,2]
[339355071,1727461840064,-274.97389085,0.0001966,2]
[339355072,1727461840074,-500.0,0.0001966,2]
[339355073,1727461840083,-188.36527622,0.0001966,2]
[339355074,1727461840093,-500.0,0.0001966,2]
[339355075,1727461840103,-419.54604211,0.0001966,2]
[339355076,1727461840113,-500.0,0.0001966,2]
[339355077,1727461840123,-249.8746119,0.0001966,2]
[339355078,1727461840132,-192.48172359,0.0001966,2]
[339355079,1727461840143,-1133.2255627,0.00019661,2]
[339355080,1727461840153,-13228.17778044,0.00019661,3]
[339355085,1727461840432,-2695.59999996,0.00019661,3]
[339355086,1727461840446,-1406.99999952,0.00019661,3]
[339355087,1727461840462,-92327.79939208,0.00019661,3]
[339355088,1727461840472,-214685.090277,0.00019661,3]
[339355089,1727461840482,-6618.4444846,0.00019665,2]
[339355090,1727461840492,-502.35449225,0.00019673,2]
[339355091,1727461840502,-54829.2885859,0.00019716,3]
[339355092,1727461840511,-107342.545139,0.00019716,3]
[339355093,1727461840520,-208.21312646,0.00019721,2]
[339355094,1727461840531,-500.0,0.00019726,2]
[339355095,1727461840541,-722.71,0.00019726,2]
[339355096,1727461840550,-500.0,0.00019726,2]
[339355097,1727461840560,-500.0,0.00019726,2]
[339355098,1727461840571,-816.48,0.00019726,2]
[339355099,1727461840580,-655.04,0.00019726,2]
[339355100,1727461840590,-1024.87,0.00019726,2]
[339355101,1727461840600,-500.0,0.00019726,2]
[339355102,1727461840609,-500.0,0.00019726,2]
[339355103,1727461840620,-500.0,0.00019726,2]
[339355104,1727461840630,-702.72,0.00019726,2]
[339355105,1727461840640,-500.0,0.00019726,2]
[339355106,1727461840649,-1552.36,0.00019726,2]
[339355107,1727461840659,-500.0,0.00019726,2]
[339355108,1727461840669,-924.61,0.00019726,2]
[339355109,1727461840679,-8239.7,0.00019726,2]
[339355110,1727461840688,-2708.56092897,0.0001976,2]
[339355111,1727461840698,-208.21312646,0.000198,2]
[339355112,1727461840707,-6618.4444846,0.00019814,2]
[339355113,1727461840718,-200.0,0.0001986,2]
[339355114,1727461840728,-500.0,0.0001986,2]
[339355115,1727461840737,-500.0,0.0001986,2]
[339355116,1727461840746,-500.0,0.0001986,2]
[339355117,1727461840755,-500.0,0.0001986,2]
[339355118,1727461840765,-500.0,0.0001986,2]
[339355119,1727461840774,-1875.08,0.0001986,2]
[339355120,1727461840784,-502.02,0.0001986,2]
[339355121,1727461840794,-500.0,0.0001986,2]
[339355122,1727461840803,-500.0,0.0001986,2]
[339355123,1727461840812,-557.08,0.0001986,2]
[339355124,1727461840823,-713.8,0.0001986,2]
[339355125,1727461840832,-588.18,0.0001986,2]
[339355126,1727461840842,-208.21312646,0.0001988,2]
[339355127,1727461840851,-600.0,0.0001995,3]
[339355128,1727461840860,-600.0,0.0001995,3]
[339355129,1727461840869,-600.0,0.0001995,3]
[339355130,1727461840878,-483.813,0.0001995,2]
[339355131,1727461840888,-199.00374716,0.0001995,2]
[339355132,1727461841022,-66282.62028459,0.0001997,3]
[339355133,1727461841035,-43375.95688741,0.0001997,3]
[339355134,1727461841046,-17424.84489443,0.0001997,3]
[339355140,1727461842905,-69350.40361883,0.0001997,3]
[339355141,1727461842917,-112527.9583232,0.0001997,3]
[339355153,1727461845786,-411.74,0.0001996,3]
[339355154,1727461845797,-15381.88344054,0.0001997,3]
[339355155,1727461845809,-1372.23952576,0.0001998,3]
[339355161,1727462745152,-800.0,0.00017876,2]
[339355162,1727462745173,-6226.89355145,0.00018728,2]
[339355163,1727462745195,-500.0,0.00018904,2]
[339355164,1727462745220,-300.0,0.00018971,2]
[339355165,1727462745244,-300.0,0.00018971,2]
[339355166,1727462745265,-800.0,0.00018972,2]
[339355167,1727462745286,-207.2001964,0.00018989,2]
[339355168,1727462745307,-1000.0,0.00019,2]
[339355169,1727462745329,-796.19166105,0.00019,2]
[339355185,1727463001800,168.10923161,0.00014,2]
[339355186,1727463001824,232.02179277,0.00014,2]
[339355187,1727463001846,163.68088684,0.00014,2]
[339355188,1727463001869,40.06306678,0.00014,2]
[339355224,1727463032029,-324.8000001,0.00018972,2]
[339355225,1727463032042,-375.1999999,0.00018972,2]
[339355226,1727463032053,-300.0,0.00018999,2]
[339355227,1727463032064,-203.80833895,0.00019,2]
[339355228,1727463032073,-1000.0,0.00019,2]
[339355229,1727463032083,-1000.0,0.00019,2]
[339355230,1727463032093,-1003.0,0.00019,2]
[339355231,1727463032104,-1000.0,0.00019,2]
[339355232,1727463032115,-1000.0,0.00019,2]
[339355233,1727463032124,-722.87173579,0.00019,2]
[339355234,1727463032137,-277.12826421,0.00019,2]
[339355235,1727463032147,-1000.0,0.00019,2]
[339355236,1727463032157,-1010.0,0.00019,2]
[339355237,1727463032167,-208.78348866,0.00019078,3]
[339355238,1727463032177,-1825.9301393,0.00019078,2]
[339355239,1727463032191,-847.87021998,0.00019078,2]
[339355240,1727463032201,-150.0,0.00019096,2]
[339355241,1727463032212,-77.05226314,0.000191,2]
[339355285,1727463038287,-73.94773686,0.000191,2]
[339355286,1727463038297,-500.0,0.00019177,2]
[339355287,1727463038307,-265.36095551,0.00019177,2]
[339355288,1727463038318,-500.0,0.00019178,2]
[339355289,1727463038330,-1796.95,0.00019178,2]
[339355290,1727463038340,-500.0,0.00019178,2]
[339355291,1727463038352,-573.16,0.00019178,2]
[339355292,1727463038363,-500.0,0.00019178,2]
[339355293,1727463038374,-500.0,0.00019178,2]
[339355294,1727463038387,-649.65,0.00019178,2]
[339355295,1727463038398,-386.29035934,0.00019178,2]
[339355296,1727463038410,-191.24057649,0.00019178,2]
[339355297,1727463038422,-500.0,0.00019178,2]
[339355298,1727463038432,-563.65,0.00019178,2]
[339355299,1727463038441,-716.29,0.00019178,2]
[339355300,1727463038451,-500.0,0.00019178,2]
[339355301,1727463038460,-500.0,0.00019178,2]
[339355302,1727463038470,-546.54745318,0.00019178,2]
[339355303,1727463038479,-500.0,0.00019178,2]
[339355304,1727463038489,-593.38,0.00019178,2]
[339355305,1727463038501,-374.6338294,0.00019178,2]
[339355318,1727463040225,-169.76488623,0.00019178,2]
[339355319,1727463040235,-1388.3,0.00019178,2]
[339355320,1727463040246,-185.3,0.00019178,2]
[339355321,1727463040256,-263.73000007,0.00019178,2]
[339355322,1727463040268,-272.34010531,0.00019178,2]
[339355323,1727463040280,-500.0,0.00019178,2]
[339355324,1727463040291,-200.0,0.00019178,2]
[339355325,1727463040300,-491.14,0.00019178,2]
[339355326,1727463040310,-789.87979194,0.00019178,2]
[339355327,1727463040321,-632.37,0.00019178,2]
[339355328,1727463040331,-344.71093875,0.00019178,2]
[339355329,1727463040341,-809.04,0.00019178,2]
[339355330,1727463040351,-500.0,0.00019178,2]
[339355331,1727463040360,-500.0,0.00019178,2]
[339355332,1727463040370,-500.0,0.00019178,2]
[339355333,1727463040380,-500.0,0.00019178,2]
[339355334,1727463040390,-714.42,0.00019178,2]
[339355335,1727463040399,-939.46,0.00019178,2]
[339355336,1727463040409,-500.0,0.00019178,2]
[339355337,1727463040420,-500.0,0.00019178,2]
[339355338,1727463040430,-500.0,0.00019178,2]
[339355339,1727463040440,-7971.71,0.00019178,2]
[339355340,1727463040449,-500.0,0.00019178,2]
[339355341,1727463040460,-208.150408,0.00019178,2]